bitfinex/quotes_ETHUSD_20250625
["timestamp","ask_amount","ask_price","bid_price","bid_amount"]
[1750842853517,1.0457,2443.9,2443.5,4.09234947]
[1750842853834,1.0457,2443.9,2443.6,4.09230125]
[1750842854032,1.0457,2443.9,2443.7,4.09214685]
[1750842854234,14.09122888,2444.3,2443.8,4.09198788]
[1750842854535,1.9836946,2444.2,2443.8,4.09198788]
[1750842854735,10.9902,2444.3,2443.8,4.09198788]
[1750842854936,0.9902,2444.3,2443.8,4.09182188]
[1750842855118,0.9902,2444.3,2444.0,4.09153573]
[1750842856335,2.9184,2444.6,2444.2,4.09131822]
[1750842856634,1.0624,2444.6,2444.1,6.885]
[1750842856814,1.0624,2444.6,2444.2,4.09124207]
[1750842857220,5.15305125,2444.6,2444.1,4.09140847]
[1750842857517,1.98673773,2444.6,2444.0,4.09156053]
[1750842857720,5.15316242,2444.6,2444.1,4.09136293]
[1750842858547,5.15316242,2444.6,2444.0,4.0915684]
[1750842858915,4.0908201,2444.5,2444.0,4.0915684]
[1750842859313,5.15314014,2444.6,2444.1,4.09142838]
[1750842859508,6.07743053,2444.6,2444.1,4.09142838]
[1750842859848,4.09085065,2444.5,2444.0,4.0915609]
[1750842860855,1.98675169,2444.6,2443.9,6.885]
[1750842860856,6.07746418,2444.6,2443.9,6.885]
[1750842861066,4.09089636,2444.5,2444.0,4.09164842]
[1750842861252,4.09089636,2444.5,2443.9,6.885]
[1750842861253,5.1078573,2444.4,2443.9,10.97673478]
[1750842861838,1.01683605,2444.4,2444.1,4.09146574]
[1750842862235,1.01683605,2444.4,2443.3,6.884]
[1750842862546,0.9929,2444.1,2443.5,4.09238513]
[1750842862858,0.9929,2444.1,2443.6,4.0923228]
[1750842863058,2.91045012,2444.1,2443.7,4.09209009]
[1750842863655,7.00194595,2444.1,2443.6,4.09223829]
[1750842863829,2.91045012,2444.1,2443.7,4.09213547]
[1750842864255,4.09176288,2444.0,2443.4,4.09249122]
[1750842864457,4.09176288,2444.0,2443.5,4.0924691]
[1750842864628,4.79198418,2444.0,2443.5,4.0924691]
[1750842865175,4.09185295,2443.9,2443.4,4.09251469]
[1750842865578,5.09172876,2443.9,2443.4,4.09263155]
[1750842865729,5.09195533,2443.7,2442.4,0.46767425]
[1750842866071,10.0,2443.2,2442.2,4.09466874]
[1750842866234,14.09300307,2443.2,2442.6,4.09390323]
[1750842866440,4.0933363,2443.0,2442.4,4.09424331]
[1750842866651,4.91208538,2443.0,2442.3,4.09447314]
[1750842866851,0.81863351,2443.0,2442.2,6.883]
[1750842867057,1.075,2443.1,2442.7,4.0938205]
[1750842867363,1.075,2443.1,2442.8,4.093663]
[1750842867869,1.075,2443.1,2442.8,4.09364439]
[1750842868270,1.075,2443.1,2442.7,4.09374761]
[1750842869069,1.075,2443.1,2442.8,4.09362109]
[1750842869260,1.075,2443.1,2442.9,4.09349094]
[1750842869971,1.075,2443.1,2442.9,4.09345628]
[1750842871776,0.9856,2443.4,2441.9,0.3139686]
[1750842871949,0.9856,2442.8,2441.1,0.31029297]
[1750842872149,5.07927491,2442.8,2442.3,4.09441835]
[1750842872385,10.0,2442.7,2442.3,4.09441835]
[1750842872587,4.09393395,2442.7,2442.1,4.09473929]
[1750842873090,4.09420627,2442.5,2441.8,4.09526045]
[1750842873265,1.0626,2442.4,2441.7,1.853]
[1750842873590,5.15702218,2442.4,2441.8,4.09522475]
[1750842873784,5.15702218,2442.4,2441.9,4.09508863]
[1750842873991,1.0626,2442.4,2441.9,4.09508863]
[1750842874162,1.0626,2442.4,2442.0,4.09498743]
[1750842874763,1.0626,2442.4,2442.1,4.09475283]
[1750842875267,4.09451584,2442.3,2441.3,4.09608832]
[1750842875470,5.15704018,2442.4,2441.7,1.853]
[1750842875679,4.094504,2442.3,2441.8,4.09525138]
[1750842876202,4.094504,2442.3,2441.4,9.818]
[1750842876203,1.0706,2441.7,2440.3,4.09773253]
[1750842876382,1.0706,2441.7,2441.4,4.09591398]
[1750842876571,1.0706,2441.7,2441.2,4.09622934]
[1750842876775,1.0706,2441.7,2441.4,4.09590228]
[1750842877080,1.0495,2442.0,2441.5,4.09570265]
[1750842877280,1.0495,2442.0,2441.6,4.09566385]
[1750842877584,1.0495,2442.0,2441.6,4.09562756]
[1750842877786,11.0495,2442.0,2441.5,4.09577618]
[1750842878095,15.14451374,2442.0,2441.4,4.09594235]
[1750842878265,5.14451374,2442.0,2441.4,4.09594235]
[1750842878693,15.14451374,2442.0,2441.4,4.09594235]
[1750842878896,17.05501678,2442.0,2441.4,4.09594235]
[1750842879099,17.05501678,2442.0,2441.4,5.94994235]
[1750842879406,4.09524699,2441.9,2441.3,5.95009655]
[1750842879778,4.09524699,2441.9,2441.4,4.09598306]
[1750842879978,17.05511074,2442.0,2440.7,9.821]
[1750842880279,17.05511074,2442.0,2441.5,4.0958276]
[1750842880974,12.96000304,2442.0,2441.6,4.09567332]
[1750842881370,12.96000304,2442.0,2441.5,4.09575806]
[1750842881597,11.0495,2442.0,2441.4,4.09601048]
[1750842881900,10.9829,2442.5,2442.1,4.0948146]
[1750842882363,0.9829,2442.5,2442.1,4.0948146]
[1750842882568,0.9829,2442.5,2442.2,4.09465631]
[1750842883173,0.9829,2442.5,2442.1,4.09475046]
[1750842883494,0.9829,2442.5,2442.0,4.09492899]
[1750842883697,0.9829,2442.5,2442.1,4.09473662]
[1750842885403,0.9829,2442.5,2442.0,4.09499459]
[1750842885581,0.9829,2442.5,2442.1,4.09475882]
[1750842887698,0.9829,2442.5,2442.2,4.09465503]
[1750842887907,0.9829,2442.5,2442.3,4.09437051]
[1750842888198,0.9829,2442.5,2441.7,11.05648565]
[1750842888199,1.0634,2442.1,2441.6,0.9092]
[1750842888592,4.09519691,2441.9,2441.6,0.9092]
[1750842888789,4.09519691,2441.9,2441.4,4.09593171]
[1750842889302,4.09542806,2441.8,2441.2,0.0789]
[1750842889472,1.0634,2442.1,2441.2,1.37643429]
[1750842889673,4.09500409,2442.0,2441.5,4.09583117]
[1750842890002,4.0951892,2441.9,2441.4,4.09592573]
[1750842890374,4.09506791,2442.0,2441.5,4.09584063]
[1750842890776,1.0634,2442.1,2441.0,1.854]
[1750842890777,1.0221,2441.8,2441.0,1.854]
[1750842890975,4.09559673,2441.7,2441.2,4.09633332]
[1750842891182,5.07191543,2441.7,2441.2,4.09633332]
[1750842892804,0.9763187,2441.7,2441.3,4.09617215]
[1750842893210,0.9763187,2441.7,2441.4,4.09600522]
[1750842893707,0.9763187,2441.7,2441.1,1.854]
[1750842893708,5.11751967,2441.8,2441.3,4.09616112]
[1750842894712,1.0221,2441.8,2441.4,4.09600748]
[1750842895013,5.11745309,2441.8,2441.4,4.09600748]
[1750842895181,5.11745309,2441.8,2441.2,4.09634558]
[1750842895182,1.0221,2441.8,2441.5,4.09583652]
[1750842895515,1.0221,2441.8,2441.2,0.0789]
[1750842895686,1.0221,2441.8,2441.4,4.09584824]
[1750842896312,1.0383,2442.3,2441.4,0.82709265]
[1750842896484,5.13283085,2442.3,2441.7,4.09542242]
[1750842896816,5.13283085,2442.3,2441.8,4.09524192]
[1750842897113,11.0383,2442.3,2441.8,4.09524192]
[1750842897717,11.0383,2442.3,2441.9,4.0951636]
[1750842899020,1.0383,2442.3,2442.0,4.09497824]
[1750842899213,1.0383,2442.3,2442.1,4.0948104]
[1750842900009,1.0511,2442.5,2442.1,4.0948104]
[1750842900307,1.0511,2442.5,2442.2,4.09456913]
[1750842900511,10.0,2442.4,2442.0,4.09494143]
[1750842900702,10.0,2442.4,2442.2,1.0]
[1750842900904,1.0511,2442.5,2442.2,1.0]
[1750842901103,1.0511,2442.5,2442.2,5.09459523]
[1750842901424,1.0581,2442.8,2442.6,4.09397945]
[1750842901615,1.0581,2442.8,2442.2,1.0789]
[1750842901781,1.0581,2442.8,2442.5,4.09414884]
[1750842902120,1.1054,2443.2,2442.7,4.09368444]
[1750842902432,1.40644,2443.2,2442.8,4.09357533]
[1750842902587,4.09249278,2443.5,2443.0,4.09322924]
[1750842902787,4.09268252,2443.4,2442.9,4.09348443]
[1750842903012,1.0799,2443.4,2442.4,0.0789]
[1750842903317,4.09310687,2443.2,2442.7,4.09369307]
[1750842903484,0.40931069,2443.1,2442.7,4.09369307]
[1750842903813,0.40931069,2443.1,2442.4,7.0579]
[1750842903814,1.0799,2443.4,2442.5,1.905]
[1750842904019,1.0799,2443.4,2443.1,4.09315548]
[1750842904516,1.0799,2443.4,2443.0,4.09323771]
[1750842905318,15.17256275,2443.4,2442.9,4.09342105]
[1750842905623,1.0799,2443.4,2442.5,1.905]
[1750842905791,1.0799,2443.4,2443.1,4.09301467]
[1750842905991,1.0799,2443.4,2443.0,4.09325798]
[1750842906213,11.0799,2443.4,2443.0,4.09325798]
[1750842907422,1.0799,2443.4,2443.1,4.09312322]
[1750842907821,1.0799,2443.4,2443.0,4.09325823]
[1750842908117,2.5971363,2443.4,2443.1,4.09315802]
[1750842908425,2.5971363,2443.4,2443.0,4.09324168]
[1750842908716,2.5971363,2443.4,2443.1,4.09314363]
[1750842908921,1.0799,2443.4,2443.2,4.09296365]
[1750842909118,11.0617,2443.9,2443.3,4.09272784]
[1750842909295,10.0,2443.7,2443.3,4.09280441]
[1750842909626,11.11849927,2443.7,2443.2,4.09286607]
[1750842909800,5.21066233,2443.7,2443.3,4.09279812]
[1750842910010,5.2106629,2443.7,2443.2,4.09291651]
[1750842910607,1.11849927,2443.7,2443.3,4.09279538]
[1750842910807,5.21065622,2443.7,2443.2,4.09291127]
[1750842911532,5.2107003,2443.7,2443.2,4.09290687]
[1750842913037,1.0203,2443.5,2443.1,4.09307511]
[1750842914314,1.041,2443.9,2443.5,4.09248649]
[1750842914841,1.041,2443.9,2443.6,4.09224114]
[1750842915537,1.041,2443.9,2443.5,4.09238591]
[1750842915706,11.041,2443.9,2443.5,4.09238591]
[1750842917932,5.13283525,2443.9,2443.4,4.09256586]
[1750842918343,1.041,2443.9,2443.5,4.09247933]
[1750842919343,1.041,2443.9,2443.6,4.09219759]
[1750842919843,1.041,2443.9,2443.5,4.09240979]
[1750842920723,5.13282276,2443.9,2443.5,4.09240979]
[1750842920925,1.041,2443.9,2443.5,4.09240979]
[1750842921141,1.041,2443.9,2443.7,4.09215331]
[1750842921336,11.0688,2444.2,2443.8,4.09187829]
[1750842921545,12.5848025,2444.2,2443.8,4.09187829]
[1750842921843,12.5848025,2444.2,2443.8,4.09191598]
[1750842921844,1.0688,2444.2,2443.8,4.09191598]
[1750842922041,1.0688,2444.2,2443.5,5.99642077]
[1750842922042,5.16024399,2444.2,2443.5,5.99642077]
[1750842922340,5.16024399,2444.2,2443.7,4.09215456]
[1750842922513,5.16024399,2444.2,2443.6,4.09228216]
[1750842922514,6.03237011,2444.2,2443.6,4.09228216]
[1750842922714,5.16024399,2444.2,2443.7,4.09202732]
[1750842923339,1.0688,2444.2,2443.8,4.09197556]
[1750842923711,1.0688,2444.2,2443.5,5.99648538]
[1750842923914,1.0688,2444.2,2444.0,4.09153004]
[1750842924345,1.0081,2444.4,2444.1,4.09148561]
[1750842924541,1.0081,2444.4,2444.3,4.09115084]
[1750842924744,11.0081,2444.8,2444.4,4.09091474]
[1750842924909,10.0,2444.7,2444.5,4.09080696]
[1750842925243,3.40043556,2444.8,2444.4,4.09093056]
[1750842925442,10.0,2444.7,2444.4,4.09093056]
[1750842925650,10.0,2444.7,2444.2,4.09125616]
[1750842925651,10.0,2444.7,2444.3,4.09106757]
[1750842926447,1.0081,2444.8,2444.5,4.09078428]
[1750842926659,1.0081,2444.8,2444.4,4.09090723]
[1750842927139,1.0081,2444.8,2444.5,4.0907186]
[1750842927316,1.0081,2444.8,2444.4,4.09090723]
[1750842927719,1.0081,2444.8,2444.3,4.09114878]
[1750842927720,1.0081,2444.8,2444.5,4.09080437]
[1750842927917,1.0081,2444.8,2444.4,4.09082133]
[1750842928446,1.0081,2444.8,2444.5,4.09079862]
[1750842928669,1.0081,2444.8,2444.4,4.09097628]
[1750842928854,1.0081,2444.8,2444.5,4.09073245]
[1750842929056,1.0081,2444.8,2444.6,4.09062281]
[1750842929650,1.0081,2444.8,2444.5,4.09072626]
[1750842929954,1.0302,2445.4,2444.5,0.81818143]
[1750842930156,5.11958392,2445.4,2444.9,4.09008765]
[1750842930322,4.08947785,2445.3,2444.9,4.09008765]
[1750842930523,1.0302,2445.4,2445.0,4.08995405]
[1750842930924,11.0302,2445.4,2445.0,4.08995405]
[1750842931152,5.11957693,2445.4,2444.9,4.0900468]
[1750842931351,10.0,2445.2,2444.8,4.09023057]
[1750842932055,4.08965342,2445.2,2444.7,4.0903927]
[1750842933158,4.08982253,2445.1,2444.6,4.09053479]
[1750842933344,4.08982253,2445.1,2444.7,4.09047507]
[1750842934062,4.08982253,2445.1,2444.6,4.09055366]
[1750842934433,5.18809012,2445.0,2444.6,4.09055366]
[1750842934757,5.18809012,2445.0,2444.4,0.0817]
[1750842934758,1.0981,2445.0,2444.4,0.0817]
[1750842934959,1.0981,2445.0,2444.3,1.872]
[1750842935131,4.09049843,2444.7,2444.2,4.09122204]
[1750842935327,1.0821,2444.6,2443.8,9.817]
[1750842935562,4.09158524,2444.1,2443.6,5.9642139]
[1750842936041,4.09158524,2444.1,2443.4,4.09254895]
[1750842936042,5.19047971,2444.0,2443.4,4.09254895]
[1750842936247,5.19047971,2444.0,2443.5,4.09247197]
[1750842936550,5.19047971,2444.0,2443.6,4.09232067]
[1750842936551,1.0987,2444.0,2443.6,4.09232067]
[1750842937453,1.0987,2444.0,2443.7,4.09210329]
[1750842938468,1.0987,2444.0,2443.8,4.09195341]
[1750842938677,1.0987,2444.0,2443.9,4.09182045]
[1750842938977,1.0595,2444.6,2444.4,4.09088235]
[1750842939336,1.0595,2444.6,2443.9,1.872]
[1750842939564,1.0595,2444.6,2444.1,4.09134526]
[1750842939876,1.0595,2444.6,2444.2,4.09131368]
[1750842940878,1.0595,2444.6,2443.9,1.9537]
[1750842940879,5.15016297,2444.6,2444.1,4.0914042]
[1750842941279,5.15016297,2444.6,2444.1,5.9634042]
[1750842941656,1.0595,2444.6,2444.2,4.09129285]
[1750842941856,5.15020636,2444.6,2444.1,5.96347528]
[1750842942285,1.0595,2444.6,2444.2,4.09129647]
[1750842942781,1.0595,2444.6,2444.1,1.872]
[1750842942989,4.09090598,2444.5,2444.0,5.96354812]
[1750842943886,1.0595,2444.6,2444.0,5.96364849]
[1750842944188,1.0595,2444.6,2444.2,4.0913099]
[1750842944389,5.1501673,2444.6,2444.1,4.09141113]
[1750842944585,14.08984649,2445.1,2443.7,0.0817]
[1750842944586,1.1031,2444.4,2443.7,0.0817]
[1750842944897,4.09132498,2444.2,2443.7,4.09206603]
[1750842945118,1.0433,2444.1,2443.7,4.09206603]
[1750842945395,5.13479861,2444.1,2443.6,4.09223762]
[1750842945614,1.0433,2444.1,2443.7,4.09214527]
[1750842945886,1.0433,2444.1,2443.8,4.09191256]
[1750842946068,1.0433,2444.1,2443.7,4.09208611]
[1750842946272,1.0433,2444.1,2443.8,4.09196434]
[1750842948405,1.0433,2444.1,2443.5,1.872]
[1750842948610,5.64831848,2444.1,2443.6,4.09228296]
[1750842948793,5.13486448,2444.1,2443.6,4.09228296]
[1750842950105,4.09168048,2444.0,2443.5,4.09238679]
[1750842950309,4.09183896,2443.9,2443.4,5.96458319]
[1750842950478,4.09174589,2444.0,2443.5,4.09247124]
[1750842950679,1.1027,2443.9,2443.6,4.09229823]
[1750842952005,1.1027,2443.9,2443.3,1.872]
[1750842952203,1.0868,2444.1,2443.3,5.96476076]
[1750842952378,1.0868,2444.1,2443.7,4.09203099]
[1750842952903,1.0868,2444.1,2443.8,4.09189896]
[1750842953206,1.0868,2444.1,2443.7,4.0920837]
[1750842953507,5.17833914,2444.1,2443.6,4.09225413]
[1750842953718,1.0868,2444.1,2443.7,4.09213961]
[1750842954011,5.17830071,2444.1,2443.6,4.0922286]
[1750842954185,5.17830071,2444.1,2443.6,4.09227526]
[1750842954374,1.0868,2444.1,2443.7,4.09215335]
[1750842955404,0.9994,2444.3,2444.0,4.09155785]
[1750842956116,5.09055741,2444.3,2443.7,7.79494629]
[1750842956321,5.09055741,2444.3,2443.8,4.09198138]
[1750842957904,0.9994,2444.3,2443.9,4.09181179]
[1750842958896,0.9994,2444.3,2444.0,4.09165176]
[1750842959431,0.9994,2444.3,2443.9,4.09174459]
[1750842959728,5.0905662,2444.3,2443.8,4.09189529]
[1750842959925,2.91754689,2444.3,2443.7,6.895]
[1750842960144,4.09132126,2444.2,2443.7,10.98707786]
[1750842960437,1.026,2444.1,2443.7,10.98707786]
[1750842960745,4.09132126,2444.2,2443.3,6.04616114]
[1750842960746,4.09206287,2443.8,2443.3,4.0927861]
[1750842961053,1.0361,2443.7,2443.3,4.0927861]
[1750842961341,1.0361,2443.7,2443.2,8.754]
[1750842961342,5.12826614,2443.7,2443.2,8.754]
[1750842961546,1.0423,2443.4,2443.0,4.09332241]
[1750842962852,1.0423,2443.4,2443.2,1.1]
[1750842963958,1.0423,2443.4,2443.2,5.19290691]
[1750842964258,1.0423,2443.4,2443.2,1.1]
[1750842964557,1.0423,2443.4,2443.2,5.1929767]
[1750842965256,1.0423,2443.4,2443.2,1.1]
[1750842965751,1.0423,2443.4,2443.2,5.19298331]
[1750842966054,1.0423,2443.4,2443.2,1.1]
[1750842966279,1.0423,2443.4,2443.2,5.19296903]
[1750842966457,1.0423,2443.4,2443.2,1.1]
[1750842966862,5.1349855,2443.4,2443.2,1.1]
[1750842969260,1.0423,2443.4,2443.2,1.1]
[1750842969768,5.13503257,2443.4,2443.2,1.1]
[1750842969940,5.11502527,2443.3,2443.2,1.1]
[1750842970147,1.0222,2443.3,2442.6,6.894]
[1750842970331,1.0222,2443.3,2442.9,4.09342132]
[1750842970526,1.0222,2443.3,2442.6,6.894]
[1750842970527,5.11502978,2443.3,2442.8,4.09357075]
[1750842970734,1.0222,2443.3,2442.6,6.894]
[1750842971040,1.0222,2443.3,2442.8,4.09365742]
[1750842971256,5.11502578,2443.3,2442.6,10.98795608]
[1750842971456,5.11511529,2443.3,2442.8,4.0936545]
[1750842971828,1.0222,2443.3,2442.9,4.09346563]
[1750842972265,5.11502587,2443.3,2442.8,4.59357841]
[1750842972452,4.0930062,2443.2,2442.8,0.5]
[1750842972665,2.94295783,2443.3,2442.8,0.5]
[1750842972666,7.03585637,2443.3,2442.8,4.5936384]
[1750842972961,4.09299511,2443.2,2442.8,0.5]
[1750842973162,7.0358483,2443.3,2442.8,4.59362415]
[1750842973379,4.09299279,2443.2,2442.8,0.5]
[1750842973580,5.8726408,2443.2,2442.8,0.5]
[1750842974085,1.77964801,2443.2,2442.8,0.5]
[1750842974284,1.77964801,2443.2,2442.8,4.59358453]
[1750842974460,1.77964801,2443.2,2442.8,4.5936627]
[1750842975481,1.77964801,2443.2,2442.9,4.09348121]
[1750842975677,1.0222,2443.3,2442.9,4.09348121]
[1750842975980,5.11502899,2443.3,2442.8,4.59355555]
[1750842976275,4.0930903,2443.2,2442.8,0.5]
[1750842976586,1.0222,2443.3,2442.8,4.59361866]
[1750842976772,1.0222,2443.3,2442.9,4.09348728]
[1750842977153,1.0222,2443.3,2443.0,4.09329124]
[1750842977490,5.13121275,2443.6,2443.1,4.09300813]
[1750842977703,1.0388,2444.3,2443.3,0.0811]
[1750842977872,4.09189731,2443.9,2443.4,4.09255586]
[1750842978264,5.19419731,2443.9,2443.4,4.09255586]
[1750842979707,1.1023,2443.9,2443.5,4.09248382]
[1750842980602,1.1023,2443.9,2443.3,4.09282527]
[1750842980807,4.09208828,2443.8,2443.3,4.09282527]
[1750842981107,5.19419146,2443.9,2443.4,4.0926561]
[1750842981517,4.09199848,2443.8,2443.3,4.09274828]
[1750842981685,5.19419884,2443.9,2443.4,4.09256151]
[1750842981885,1.1023,2443.9,2443.6,4.09231769]
[1750842982076,1.1023,2443.9,2443.4,4.09256151]
[1750842982508,1.1023,2443.9,2443.5,4.09239682]
[1750842983007,5.1941207,2443.9,2443.4,4.09256391]
[1750842983209,4.09198788,2443.8,2443.3,4.09281775]
[1750842983394,6.12276689,2443.9,2443.4,4.09256572]
[1750842983711,1.1023,2443.9,2443.5,4.09247296]
[1750842986327,1.1023,2443.9,2443.6,4.09217827]
[1750842986824,6.5081602,2444.5,2443.6,4.09217827]
[1750842986825,11.0374,2444.2,2443.6,4.09226112]
[1750842987031,14.09174677,2444.0,2443.5,4.1734994]
[1750842987228,4.09186552,2443.9,2443.4,4.09257823]
[1750842987394,5.09456552,2443.9,2443.4,4.09257823]
[1750842988445,1.0027,2443.9,2443.5,4.0924761]
[1750842989654,5.0946197,2443.9,2443.4,4.09256651]
[1750842989942,5.09456714,2443.9,2443.4,4.09264689]
[1750842990122,5.09456714,2443.9,2443.5,4.09247884]
[1750842990321,5.09456714,2443.9,2443.4,4.09259491]
[1750842990713,1.0164,2443.6,2443.3,4.09281555]
[1750842991934,1.0164,2443.6,2443.2,10.98390746]
[1750842992350,1.0164,2443.6,2443.3,4.09280586]
[1750842993209,1.0164,2443.6,2443.3,4.09273494]
[1750842993614,5.10876591,2443.6,2443.2,6.891]
[1750842994031,5.10876591,2443.6,2443.2,10.98398694]
[1750842994444,1.0164,2443.6,2443.2,10.98398694]
[1750842994642,1.0164,2443.6,2443.3,4.09280823]
[1750842996454,1.0164,2443.6,2443.2,4.09292037]
[1750842996653,1.0164,2443.6,2443.3,4.0928134]
[1750842997255,1.0164,2443.6,2443.2,4.09290966]
[1750842997755,1.0164,2443.6,2443.3,4.09281019]
[1750842998555,1.0164,2443.6,2443.2,4.09290844]
[1750842998718,1.0164,2443.6,2443.3,4.09271461]
[1750842999340,1.0164,2443.6,2443.2,4.09299279]
[1750842999618,1.0164,2443.6,2443.3,4.09274377]
[1750842999852,1.0164,2443.6,2443.4,4.09262803]
[1750843003175,1.0164,2443.6,2443.3,4.09273985]
[1750843005079,1.0164,2443.6,2443.4,4.09265201]
[1750843005782,1.0646,2443.8,2443.4,4.09265201]
[1750843006977,5.15661361,2443.8,2443.4,4.09265201]
[1750843007279,5.15661361,2443.8,2443.3,4.09272797]
[1750843007693,1.0631,2442.8,2441.9,4.13743933]
[1750843007850,1.0631,2442.8,2442.0,10.885]
[1750843008050,1.0631,2442.8,2442.4,4.0943052]
[1750843008684,5.15678539,2442.8,2442.4,6.885]
[1750843009058,4.09393912,2442.7,2442.4,6.885]
[1750843009286,4.09401063,2442.6,2442.4,6.885]
[1750843009665,4.09401063,2442.6,2442.1,12.87799119]
[1750843009866,4.09401063,2442.6,2442.1,14.57530202]
[1750843010072,4.09401063,2442.6,2441.9,4.09511711]
[1750843010073,1.0899,2442.7,2442.0,6.886]
[1750843010260,1.0899,2442.6,2441.7,1.857]
[1750843010588,1.0899,2442.2,2441.8,6.886]
[1750843010785,5.18458392,2442.2,2441.8,6.886]
[1750843010962,1.0899,2442.2,2441.8,6.886]
[1750843011168,1.0899,2442.2,2441.8,10.98133555]
[1750843012489,1.0899,2442.2,2441.9,4.09517179]
[1750843012791,5.15207134,2442.5,2442.0,4.09485941]
[1750843012999,1.0579,2442.5,2442.0,4.09485941]
[1750843013163,5.1520775,2442.5,2442.0,4.09485941]
[1750843013364,1.0579,2442.5,2442.0,4.09485941]
[1750843013694,5.15209356,2442.5,2442.0,4.09491461]
[1750843013864,1.0579,2442.5,2442.0,0.51084787]
[1750843014065,1.0177,2442.8,2442.1,0.0423]
[1750843014392,4.09360561,2442.9,2442.2,4.09466874]
[1750843014699,4.09360561,2442.9,2442.3,4.09450108]
[1750843014898,4.09369692,2442.8,2442.3,4.09450108]
[1750843015069,16.01695329,2442.9,2442.4,4.09432363]
[1750843015269,10.0,2442.9,2442.5,4.09414915]
[1750843015468,4.09271785,2443.4,2442.7,4.0937143]
[1750843015677,4.09271785,2443.4,2442.5,0.0423]
[1750843015678,4.0933577,2443.0,2442.5,4.1363693]
[1750843016668,1.0768,2442.9,2442.1,4.09476002]
[1750843016890,4.09413623,2442.6,2442.0,4.09492045]
[1750843017070,1.0768,2442.5,2442.0,4.09492045]
[1750843017400,1.0768,2442.5,2442.1,4.09482354]
[1750843017992,1.0768,2442.5,2442.2,4.09459812]
[1750843019273,1.0768,2442.5,2442.3,4.0944672]
[1750843019475,1.0768,2442.5,2442.2,4.09458421]
[1750843019674,1.0768,2442.5,2442.1,4.09476803]
[1750843019675,1.0768,2442.5,2442.3,4.09448677]
[1750843019906,5.15171651,2442.9,2442.4,4.09433344]
[1750843020072,1.0582,2442.9,2442.5,4.09412889]
[1750843020575,5.15170981,2442.9,2442.4,4.09425958]
[1750843021093,4.09369626,2442.8,2442.3,4.09444748]
[1750843021294,4.09384209,2442.7,2442.2,4.09460446]
[1750843022740,5.11703109,2442.6,2442.1,5.94774989]
[1750843023097,1.853,2443.8,2442.3,9.24285621]
[1750843023407,1.022,2443.6,2442.5,0.0423]
[1750843023605,5.11440121,2443.6,2443.0,4.09317002]
[1750843023912,16.03503344,2443.6,2443.1,6.896]
[1750843024112,16.03508265,2443.6,2443.1,10.98907521]
[1750843024714,11.94266189,2443.6,2443.1,6.896]
[1750843024926,1.022,2443.6,2443.4,4.09264661]
[1750843025320,1.0842,2443.8,2443.2,4.09299279]
[1750843025631,1.0842,2443.8,2443.3,4.09282335]
[1750843025632,5.17626672,2443.8,2443.3,4.09282335]
[1750843025832,4.09219134,2443.7,2443.2,4.092948]
[1750843026197,5.17629055,2443.8,2443.1,12.84208224]
[1750843026398,10.0,2443.7,2443.1,12.84208224]
[1750843026698,4.09235469,2443.6,2443.1,12.84208224]
[1750843027018,4.09235469,2443.6,2443.1,8.749]
[1750843027220,1.0787,2443.4,2443.2,6.888]
[1750843027419,5.17143236,2443.4,2443.2,6.887]
[1750843027933,4.09282527,2443.3,2443.2,6.887]
[1750843028333,5.17141681,2443.4,2442.7,4.09374248]
[1750843028539,1.0193,2443.0,2442.4,1.853]
[1750843028829,5.11270649,2443.0,2442.6,6.886]
[1750843029040,1.0193,2443.0,2442.8,4.09365212]
[1750843029197,1.0012,2443.2,2442.9,4.09349543]
[1750843030039,1.0012,2443.2,2442.8,4.09350249]
[1750843030713,1.0012,2443.2,2442.9,4.09349177]
[1750843031603,5.09429048,2443.2,2443.0,6.886]
[1750843031798,1.0012,2443.2,2443.0,6.886]
[1750843034034,2.58292906,2443.8,2443.1,0.0789]
[1750843034243,1.0653,2443.8,2443.3,4.09271459]
[1750843034418,1.0653,2443.8,2443.4,12.83762061]
[1750843034904,11.0653,2443.8,2443.4,12.83762061]
[1750843035096,1.51572593,2443.7,2443.4,8.745]
[1750843035729,5.15729179,2443.8,2443.4,8.745]
[1750843036233,5.15729179,2443.8,2443.4,12.83765545]
[1750843037550,1.0653,2443.8,2443.5,4.09247346]
[1750843037746,1.0653,2443.8,2443.6,4.09217301]
[1750843037948,1.0653,2443.8,2443.4,8.745]
[1750843038137,11.0653,2443.8,2443.4,12.83756382]
[1750843038454,1.0653,2443.8,2443.5,4.09239068]
[1750843039015,11.0653,2443.8,2443.4,12.83757355]
[1750843039218,1.0653,2443.8,2443.4,12.83757355]
[1750843039449,1.0653,2443.8,2443.6,4.09227286]
[1750843039747,1.0653,2443.8,2443.5,4.09237475]
[1750843040051,1.0653,2443.8,2443.4,12.8375857]
[1750843040235,5.67301153,2443.8,2443.4,8.745]
[1750843040633,5.67301153,2443.8,2443.4,12.83765114]
[1750843040944,11.58101335,2443.8,2443.4,12.83765114]
[1750843043347,5.67302597,2443.8,2443.4,12.83765114]
[1750843043558,11.58101335,2443.8,2443.4,12.83761235]
[1750843043867,0.97649281,2443.7,2443.4,12.83761235]
[1750843045939,0.97649281,2443.7,2443.4,8.745]
[1750843046139,5.06873453,2443.7,2443.2,4.09290234]
[1750843046347,1.0158,2443.6,2443.3,8.737]
[1750843046536,0.60845401,2443.5,2443.3,8.737]
[1750843048947,1.0158,2443.6,2443.3,8.737]
[1750843049168,1.0158,2443.6,2443.4,4.09258487]
[1750843049763,11.59071335,2443.8,2443.4,4.09258487]
[1750843050477,4.09218585,2443.7,2443.3,12.82973391]
[1750843050657,5.09206174,2443.7,2443.3,12.82973391]
[1750843050857,0.99987589,2443.7,2443.3,12.82973391]
[1750843051048,15.68279331,2443.8,2443.3,12.82973391]
[1750843051693,0.55,2443.3,2440.8,0.21361174]
[1750843051895,1.0179,2442.1,2441.4,1.852]
[1750843052061,1.0179,2442.1,2441.5,12.88472873]
[1750843052563,11.075,2442.6,2442.0,4.09485725]
[1750843052876,15.1690493,2442.6,2442.1,11.03378905]
[1750843053372,4.09416918,2442.5,2442.2,6.942]
[1750843054483,4.09461216,2442.3,2441.6,4.09552817]
[1750843054652,4.09450108,2442.3,2441.8,6.942]
[1750843054853,4.09476963,2442.2,2441.8,6.942]
[1750843055053,4.09489291,2442.1,2441.8,6.942]
[1750843055359,4.09489291,2442.1,2441.9,8.792]